bitfinex-derivatives/quotes_ETHF0:USTF0_20250106
["timestamp","ask_amount","ask_price","bid_price","bid_amount"]
[1736178192317,0.27103,3689.5,3689.4,0.27103]
[1736178192318,1.5686,3689.5,3689.4,0.27103]
[1736178192821,2.41970751,3689.9,3689.7,0.271]
[1736178193219,2.14871751,3689.9,3689.1,0.67763]
[1736178193410,0.27101,3689.7,3689.5,0.27102]
[1736178193615,2.41972751,3689.6,3689.5,0.27102]
[1736178193816,2.14871751,3689.6,3689.5,0.27102]
[1736178194116,2.14871751,3689.6,3689.0,44.0078]
[1736178194317,2.14871751,3689.6,3689.5,0.27102]
[1736178194718,2.14871751,3689.6,3689.0,44.68544]
[1736178194923,2.14871751,3689.6,3689.5,0.27102]
[1736178197018,2.14871751,3689.6,3689.0,44.0078]
[1736178197317,3.2078,3689.7,3688.7,0.67769]
[1736178197520,0.67754,3689.6,3688.9,0.27106]
[1736178197716,0.27104,3689.3,3689.1,0.27105]
[1736178197916,1.6559,3689.2,3689.1,0.27105]
[1736178198524,3.2287,3689.2,3689.1,0.27105]
[1736178199621,5.37741751,3689.2,3689.1,0.27105]
[1736178200924,2.11221126,3689.3,3688.7,40.8]
[1736178201225,3.18411952,3689.4,3689.3,0.27104]
[1736178202327,3.59082125,3689.4,3689.3,0.27104]
[1736178203325,2.12353658,3689.4,3689.3,0.27104]
[1736178204732,2.14871751,3689.5,3689.4,0.27103]
[1736178204733,5.33283703,3689.5,3689.4,0.27103]
[1736178206228,2.55540229,3689.5,3689.4,0.27103]
[1736178206923,2.55540229,3689.5,3688.9,1.5515]
[1736178207127,2.14871751,3689.2,3689.1,0.27105]
[1736178207327,2.14871751,3689.2,3689.0,3.2078]
[1736178207328,6.39150473,3689.5,3689.0,3.2078]
[1736178207534,4.24278722,3689.5,3689.4,0.27103]
[1736178207727,4.24278722,3689.5,3689.4,3.47883]
[1736178208228,4.903,3690.3,3689.4,3.2078]
[1736178208434,2.14871751,3690.5,3690.4,0.27095]
[1736178208934,2.41966751,3690.5,3690.0,3.1902]
[1736178209131,2.14871751,3690.2,3690.1,0.27098]
[1736178209627,2.41966751,3690.5,3690.2,0.27096]
[1736178209833,2.41966751,3690.5,3690.0,43.9902]
[1736178210032,0.27096,3690.4,3690.0,43.9902]
[1736178210233,2.82623268,3690.5,3690.3,0.27096]
[1736178210833,2.55528268,3690.5,3690.4,0.27095]
[1736178211030,2.82623268,3690.5,3690.3,0.27096]
[1736178211227,2.82623268,3690.5,3690.0,3.1902]
[1736178211228,2.55528268,3690.5,3690.0,3.1902]
[1736178211532,5.31621737,3690.7,3690.0,3.1902]
[1736178211533,5.31621737,3690.7,3690.3,3.2078]
[1736178211736,5.31621737,3690.7,3690.6,0.27094]
[1736178212329,5.31621737,3690.7,3690.5,0.27094]
[1736178212530,2.14871751,3690.6,3690.5,0.27094]
[1736178212725,2.14871751,3690.6,3690.1,40.8]
[1736178212929,0.27095,3690.5,3690.1,40.8]
[1736178213131,2.14871751,3690.6,3690.0,3.1902]
[1736178213537,2.14871751,3690.6,3690.5,0.27095]
[1736178215131,0.40656037,3690.6,3690.5,0.27095]
[1736178215328,5.31621737,3691.0,3690.9,0.27092]
[1736178215736,5.31621737,3691.0,3690.9,41.07092]
[1736178215926,7.46493488,3691.0,3690.9,41.07092]
[1736178216432,0.27092,3690.9,3690.6,0.27094]
[1736178216631,1.5535,3690.9,3690.7,0.27093]
[1736178216826,2.14871751,3690.7,3690.3,4.52627876]
[1736178217131,3.2078,3690.8,3690.3,4.25531876]
[1736178217333,2.14871751,3690.4,3690.3,4.25531876]
[1736178217534,5.62746751,3690.4,3690.3,4.25531876]
[1736178217930,5.62746751,3690.4,3689.7,0.27101]
[1736178217931,0.27098,3690.0,3689.7,0.27101]
[1736178218136,5.35651751,3690.4,3689.4,7.59171876]
[1736178218137,2.14871751,3689.8,3689.4,7.59171876]
[1736178218436,2.14871751,3689.5,3689.4,4.52634876]
[1736178218836,2.14871751,3689.5,3689.4,4.25531876]
[1736178219034,2.14871751,3689.5,3689.3,0.27103]
[1736178219534,2.14871751,3689.5,3688.9,4.8845]
[1736178219728,3.68891751,3689.5,3688.9,4.8845]
[1736178219933,2.14871751,3689.2,3689.1,0.27105]
[1736178220132,2.14871751,3689.2,3688.8,2.12261008]
[1736178220433,2.14871751,3689.2,3688.8,1.5126]
[1736178220740,2.14871751,3688.9,3688.4,4.25531876]
[1736178221032,2.14871751,3688.6,3688.4,4.52641876]
[1736178221238,2.14871751,3688.6,3688.4,4.25531876]
[1736178221440,2.14871751,3688.6,3688.4,0.2711]
[1736178221635,2.1243257,3688.9,3688.1,5.35651751]
[1736178221836,2.1243257,3688.9,3688.8,0.27107]
[1736178222235,2.1243257,3689.1,3689.0,0.27106]
[1736178222835,2.1243257,3689.1,3689.0,42.62076]
[1736178223540,4.903,3689.3,3689.0,42.3497]
[1736178223742,4.903,3689.3,3689.2,0.27104]
[1736178224438,4.903,3689.3,3689.2,41.07104]
[1736178224637,2.1243257,3689.5,3689.4,0.27103]
[1736178224839,3.77161751,3689.8,3689.5,0.27102]
[1736178224840,2.1243257,3689.6,3689.5,0.27102]
[1736178225733,4.80938855,3689.8,3689.6,0.27101]
[1736178225734,2.1243257,3689.7,3689.6,0.27101]
[1736178226441,2.1243257,3689.7,3689.3,4.781]
[1736178226442,2.1243257,3689.7,3689.5,0.27102]
[1736178226645,4.80938855,3689.8,3689.5,0.27102]
[1736178226847,4.80938855,3689.8,3689.6,0.27101]
[1736178227045,4.80938855,3689.8,3689.3,1.5732]
[1736178227238,4.80938855,3689.8,3689.7,0.27101]
[1736178227645,4.80938855,3689.8,3689.3,4.781]
[1736178227945,1.6229,3689.8,3689.7,0.27101]
[1736178228141,3.18648855,3689.9,3689.3,4.781]
[1736178228361,3.18648855,3689.9,3689.8,0.271]
[1736178228941,2.12405217,3690.1,3690.0,0.27098]
[1736178229650,5.31621737,3690.9,3690.0,2.53970494]
[1736178229842,5.31621737,3690.9,3690.8,0.27093]
[1736178230146,5.31621737,3691.2,3691.1,0.2709]
[1736178230541,5.31621737,3691.2,3691.1,41.0709]
[1736178231546,3.40746,3691.7,3691.1,40.8]
[1736178231736,3.40746,3691.7,3691.6,0.27087]
[1736178231941,3.40746,3691.7,3691.1,40.8]
[1736178231942,3.1366,3691.7,3691.1,40.8]
[1736178232141,3.1366,3691.7,3691.6,0.27087]
[1736178232341,3.1366,3691.7,3691.1,40.8]
[1736178232547,3.40746,3691.7,3691.5,0.27087]
[1736178232740,3.40746,3691.7,3691.1,40.8]
[1736178232741,3.1366,3691.7,3691.1,40.8]
[1736178232946,3.1366,3691.7,3691.6,0.27087]
[1736178233244,3.1366,3691.7,3691.1,40.8]
[1736178233450,0.27091,3691.1,3690.9,0.27092]
[1736178233743,0.27093,3690.7,3690.6,4.25531876]
[1736178233949,2.53970494,3690.7,3690.6,4.25531876]
[1736178234344,2.81063494,3690.7,3690.6,4.25531876]
[1736178234648,2.53970494,3690.7,3690.6,4.52625876]
[1736178234848,2.53970494,3690.7,3690.6,0.27094]
[1736178235246,2.53970494,3690.7,3689.9,3.2078]
[1736178235751,2.53970494,3690.7,3690.3,0.27096]
[1736178235752,3.47875,3690.5,3690.3,0.27096]
[1736178235938,0.27099,3690.0,3689.8,0.271]
[1736178236249,2.53970494,3690.0,3689.6,0.27101]
[1736178236547,1.79349,3689.9,3689.7,0.271]
[1736178236750,1.5225,3689.9,3689.5,3.2078]
[1736178236942,1.5225,3689.9,3689.8,0.271]
[1736178239355,2.53970494,3690.4,3690.3,0.27096]
[1736178239550,4.11260494,3690.4,3690.3,0.27096]
[1736178239752,4.11260494,3690.4,3690.2,0.27097]
[1736178240251,0.27097,3690.2,3689.5,3.2078]
[1736178240451,2.81069494,3690.0,3689.6,40.8]
[1736178240651,2.81069494,3690.0,3689.8,0.271]
[1736178240955,2.53970494,3690.0,3689.9,0.27099]
[1736178241650,2.53970494,3690.0,3689.6,40.8]
[1736178241857,2.53970494,3690.0,3689.9,0.27099]
[1736178242051,2.53970494,3690.0,3689.8,0.271]
[1736178242252,2.81068494,3690.0,3689.7,0.271]
[1736178242454,2.81068494,3690.0,3689.8,0.271]
[1736178242753,2.53970494,3690.0,3689.9,0.27099]
[1736178244656,2.53970494,3690.0,3689.6,40.8]
[1736178244856,2.53970494,3690.0,3689.8,0.27099]
[1736178245058,2.81069494,3690.0,3689.8,0.27099]
[1736178245358,2.53970494,3690.0,3689.9,0.27099]
[1736178246161,2.53970494,3690.0,3689.6,40.8]
[1736178246353,0.27099,3689.9,3689.7,0.271]
[1736178246754,6.01849494,3690.0,3689.8,0.271]
[1736178247159,2.14945004,3689.9,3689.8,0.271]
[1736178251853,2.14945004,3690.2,3690.1,0.27098]
[1736178252052,6.39329124,3690.5,3690.0,0.67746]
[1736178252257,6.39329124,3690.5,3689.9,3.2078]
[1736178252258,2.14945004,3690.2,3689.9,3.2078]
[1736178252450,2.14945004,3690.2,3690.1,0.27098]
[1736178253361,2.14945004,3690.2,3689.9,3.2078]
[1736178253560,2.42042004,3690.2,3690.0,0.27098]
[1736178253954,2.14945004,3690.2,3690.1,0.27098]
[1736178256765,5.9626,3690.8,3690.1,0.67745]
[1736178256766,5.35725004,3690.8,3690.1,0.67745]
[1736178256970,5.35725004,3690.8,3690.7,0.27093]
[1736178257265,6.39329124,3691.1,3691.0,0.27091]
[1736178258261,4.2438412,3691.1,3691.0,0.27091]
[1736178258458,2.14945004,3691.4,3690.8,40.8]
[1736178258769,2.14945004,3691.4,3691.3,0.27089]
[1736178262767,3.47865,3691.8,3690.9,0.6773]
[1736178263076,3.2078,3691.8,3691.7,0.27086]
[1736178264566,0.27083,3692.1,3691.3,1.6379]
[1736178264567,2.14945004,3692.1,3692.0,0.27084]
[1736178265164,2.14945004,3692.1,3691.4,3.2078]
[1736178265368,2.14945004,3691.6,3691.5,0.27087]
[1736178267372,2.42032004,3691.6,3691.5,0.27087]
[1736178267568,0.27087,3691.5,3691.3,0.27089]
[1736178267773,0.2709,3691.2,3691.1,0.2709]
[1736178267969,2.14945004,3691.2,3690.8,40.8]
[1736178268271,2.14945004,3690.9,3690.8,41.07093]
[1736178269267,2.14945004,3690.9,3690.8,0.27093]
[1736178271768,1.8832,3691.2,3691.1,0.2709]
[1736178271968,4.03265004,3691.2,3691.1,0.2709]
[1736178272778,4.903,3691.8,3690.6,3.2078]
[1736178272779,2.14945004,3691.5,3690.6,3.2078]
[1736178272970,0.27091,3691.1,3691.0,0.2709]
[1736178273173,0.27093,3690.8,3690.7,0.27092]
[1736178273379,2.14945004,3690.7,3690.6,0.27094]
[1736178273574,2.42038004,3690.7,3690.6,0.27094]
[1736178273768,2.14945004,3690.7,3690.6,0.27094]
[1736178279779,0.27094,3690.6,3690.5,40.8]
[1736178280385,0.27098,3690.0,3689.9,4.52630876]
[1736178280685,0.27098,3690.0,3689.9,4.25531876]
[1736178280889,2.14945004,3690.1,3690.0,0.27098]
[1736178281096,3.2078,3690.2,3690.1,0.27098]
[1736178281296,3.1196,3690.3,3689.9,40.8]
[1736178281592,3.1196,3690.3,3690.2,0.27097]
[1736178282790,0.27097,3690.2,3690.0,0.27098]
[1736178282991,2.14945004,3690.1,3690.0,0.27098]
[1736178283191,3.63435004,3690.1,3690.0,0.27098]
[1736178285290,1.4849,3690.1,3690.0,0.27098]
[1736178285499,3.1196,3690.3,3690.2,0.27097]
[1736178288503,3.1196,3690.3,3689.9,40.8]
[1736178288703,3.1196,3690.3,3690.2,0.27097]
[1736178290505,2.14945004,3690.3,3690.2,0.27097]
[1736178290707,4.7626,3690.6,3690.5,0.27095]
[1736178290708,5.35725004,3690.6,3690.5,0.27095]
[1736178291502,3.18558153,3690.7,3690.6,0.27094]
[1736178291707,9.51759124,3690.9,3690.4,3.2078]
[1736178291708,5.27375004,3690.9,3690.4,3.2078]
[1736178291902,5.27375004,3690.9,3690.8,0.27093]
[1736178292198,6.39338153,3691.0,3690.9,0.27092]
[1736178292399,8.54283157,3691.0,3690.9,0.27092]
[1736178292801,5.33503157,3691.0,3690.9,0.27092]
[1736178293202,2.14945004,3691.0,3690.9,0.27092]
[1736178294608,3.1509,3691.1,3690.4,3.88519]
[1736178294797,2.14945004,3691.0,3690.9,0.27092]
[1736178295502,2.42036004,3691.0,3690.9,0.27092]
[1736178296304,5.35725004,3691.0,3690.3,1.5189]
[1736178296507,2.14945004,3690.7,3690.6,0.27094]
[1736178297504,2.14945004,3690.7,3690.3,2.1963]
[1736178297505,5.35725004,3691.0,3690.9,0.27092]
[1736178298504,5.35725004,3691.0,3690.4,0.67739]
[1736178298705,2.14945004,3690.7,3690.6,0.27094]
[1736178300212,5.35725004,3691.0,3690.9,0.27092]
[1736178300709,0.27092,3690.9,3690.8,0.27092]
[1736178300906,5.35725004,3691.0,3690.9,0.27092]
[1736178302109,3.18889014,3691.1,3690.6,0.67735]
[1736178302312,3.18889014,3691.1,3691.0,0.27091]
[1736178303207,4.2438412,3691.4,3691.0,3.47871]
[1736178303411,3.18889014,3691.5,3691.4,0.27088]
[1736178304315,3.18889014,3691.5,3691.4,3.47868]
[1736178304508,3.18889014,3691.7,3691.4,4.7431]
[1736178304710,2.14945004,3691.6,3691.1,1.4955]
[1736178304916,3.18889014,3691.7,3691.1,1.4955]
[1736178304917,2.42034004,3691.3,3691.2,0.27089]
[1736178305112,0.2709,3691.1,3690.9,1.5353]
[1736178305416,0.27092,3690.9,3690.8,4.25531876]
[1736178305613,3.71545004,3691.0,3690.8,4.25531876]
[1736178305807,3.71545004,3691.0,3690.6,0.27093]
[1736178306012,2.14945004,3690.7,3690.6,0.27094]
[1736178306613,3.18889014,3691.5,3691.4,0.27088]
[1736178306921,3.18889014,3691.5,3691.4,5.62813004]
[1736178307123,5.31621737,3691.6,3691.5,0.27087]
[1736178307316,4.75000737,3691.6,3691.5,3.26027]
[1736178307910,3.59864737,3691.6,3691.5,8.26027]
[1736178308116,3.0456,3692.7,3692.5,0.2708]
[1736178308418,12.79995436,3693.0,3692.7,0.27079]
[1736178309113,3.45681399,3692.9,3692.8,0.27078]
[1736178310021,3.18603399,3692.9,3692.3,1.4899]
[1736178310221,3.18603399,3692.9,3692.7,0.27078]
[1736178310222,0.27078,3692.8,3692.7,0.27078]
[1736178310614,3.2078,3693.0,3692.4,40.8]
[1736178310921,0.27078,3692.9,3692.8,0.27078]
[1736178311111,0.27078,3692.9,3692.4,40.8]
[1736178311112,1.5696,3693.1,3693.0,0.27076]
[1736178311415,3.18603399,3693.2,3693.1,0.27076]
[1736178311823,3.18603399,3693.3,3693.1,42.413]
[1736178312017,3.18603399,3693.3,3693.2,1.90155]
[1736178312317,3.18603399,3693.3,3693.2,4.05100004]
[1736178312520,3.18603399,3693.3,3693.2,9.05100004]
[1736178312715,3.18603399,3693.3,3693.2,49.85100004]
[1736178312921,3.18603399,3693.3,3693.2,44.85100004]
[1736178313113,3.18603399,3693.3,3693.2,42.70155]
[1736178313519,5.66366932,3694.3,3694.1,0.27068]
[1736178313719,5.66366932,3694.3,3694.2,0.27068]
[1736178313919,5.66366932,3694.3,3693.5,3.2078]
[1736178314117,0.27068,3694.2,3694.0,0.27069]
[1736178314318,5.66366932,3694.3,3693.5,3.2078]
[1736178314518,5.66366932,3694.3,3694.2,0.27068]
[1736178314723,5.66366932,3694.3,3693.5,3.2078]
[1736178315019,5.66366932,3694.3,3694.2,0.27068]
[1736178315223,1.6024,3694.3,3694.2,0.27068]
[1736178315613,3.2078,3694.6,3693.5,3.2078]
[1736178315822,3.2078,3694.6,3693.2,1.6308]
[1736178315823,4.24804532,3695.6,3695.1,0.27061]
[1736178316023,4.24804532,3695.6,3695.1,3.47841]
[1736178316228,4.24804532,3695.6,3695.1,8.47841]
[1736178316519,4.24804532,3695.6,3695.1,3.47841]
[1736178316723,1.55,3695.9,3695.1,3.47841]
[1736178316724,3.18603399,3695.7,3695.1,3.2078]
[1736178316921,3.18603399,3695.7,3695.6,0.27057]
[1736178317821,3.18603399,3695.7,3695.5,3.2078]
[1736178318019,3.18603399,3695.7,3695.0,3.2078]
[1736178318230,3.18603399,3695.7,3695.1,0.27061]
[1736178318231,1.55,3695.6,3695.1,0.27061]
[1736178318431,1.55,3695.6,3695.2,0.2706]
[1736178318928,2.53346932,3695.3,3694.8,0.27063]
[1736178319331,2.53346932,3695.3,3694.6,3.2078]
[1736178319727,0.27061,3695.2,3694.6,3.2078]
[1736178319929,2.53346932,3695.3,3694.6,3.2078]
[1736178320125,2.53346932,3695.3,3694.7,0.27064]
[1736178320532,2.53346932,3695.3,3694.8,40.8]
[1736178320728,2.53346932,3695.3,3694.8,41.07063]
[1736178320928,2.53346932,3695.3,3694.8,40.8]
[1736178321230,2.53346932,3694.9,3694.1,3.2078]
[1736178321535,3.2078,3694.6,3694.1,40.8]
[1736178321730,1.5093,3694.5,3694.2,0.27068]
[1736178321927,1.5093,3694.5,3694.1,40.8]
[1736178321928,3.2078,3694.6,3694.1,40.8]
[1736178322145,3.2078,3695.0,3694.5,0.27065]
[1736178322432,1.5164,3695.1,3694.1,44.0078]
[1736178322637,2.53346932,3694.5,3694.1,40.8]
[1736178322837,1.5883,3694.4,3693.7,3.2078]
[1736178323332,1.5883,3694.4,3693.8,40.8]
[1736178323528,3.2078,3694.1,3693.8,40.8]
[1736178323927,1.5164,3694.0,3693.8,40.8]
[1736178324728,1.5164,3694.0,3693.9,0.2707]
[1736178324927,1.5164,3694.0,3693.8,40.8]
[1736178325528,3.2078,3694.1,3694.0,0.27069]
[1736178325938,3.2078,3694.1,3693.9,0.2707]
[1736178326236,1.5883,3694.4,3693.5,0.59652442]
[1736178326432,1.5883,3694.4,3694.1,0.27068]
[1736178326638,1.5883,3694.4,3694.0,40.8]
[1736178326943,1.5883,3694.4,3694.3,0.27067]
[1736178327128,3.2078,3694.5,3694.4,0.27066]
[1736178327634,1.5411,3694.8,3693.8,3.1447]
[1736178327930,1.5411,3694.8,3694.7,40.8]
[1736178328132,1.5411,3694.8,3694.7,41.07064]
[1736178328736,2.53346932,3695.3,3694.9,0.27062]
[1736178328935,3.0006,3695.4,3694.7,40.8]
[1736178329138,3.0006,3695.4,3695.3,0.2706]
[1736178329525,1.502,3695.4,3695.3,0.2706]
[1736178329733,3.2078,3695.5,3695.4,0.27059]
[1736178329932,3.2078,3695.5,3695.4,40.8]
[1736178330333,3.2078,3695.5,3695.4,41.07059]
[1736178330635,3.2078,3695.5,3695.4,40.8]
[1736178330837,2.53346932,3695.7,3695.4,40.8]
[1736178331031,2.53346932,3695.7,3695.4,41.07059]
[1736178331232,2.53346932,3695.7,3695.4,40.8]
[1736178331437,2.53346932,3695.7,3695.5,0.27058]
[1736178331739,2.53346932,3695.7,3695.6,0.27057]
[1736178332326,2.53346932,3695.7,3695.4,40.8]
[1736178332634,2.53346932,3695.7,3695.6,0.27057]
[1736178332843,2.53346932,3695.7,3695.5,0.27058]
[1736178333138,2.53346932,3695.7,3694.9,3.2078]
[1736178333436,2.53346932,3695.7,3695.6,0.27057]
[1736178333634,2.53346932,3695.7,3695.0,40.8]
[1736178333836,3.2078,3695.6,3694.9,3.2078]
[1736178334539,2.53346932,3695.3,3694.9,3.2078]
[1736178334836,2.53346932,3695.3,3695.2,0.2706]
[1736178335232,3.2078,3695.6,3694.9,3.2078]
[1736178335538,2.53346932,3695.7,3694.9,3.2078]
[1736178335539,1.502,3695.9,3695.0,0.67654]
[1736178335731,1.502,3695.9,3695.8,0.27056]
[1736178336742,1.502,3695.9,3695.0,0.67654]
[1736178336938,1.502,3695.9,3695.7,0.27057]
[1736178337154,1.502,3695.9,3695.0,0.67654]
[1736178337332,1.77256,3695.9,3695.6,0.27057]
[1736178337532,1.502,3695.9,3695.8,0.27056]
[1736178338242,4.03546932,3695.9,3695.8,0.27056]
[1736178338443,4.03546932,3695.9,3694.9,3.2078]
[1736178338637,2.53346932,3695.4,3695.3,0.2706]
[1736178338939,1.502,3695.9,3694.9,3.2078]
[1736178338940,2.53346932,3695.8,3694.9,3.2078]
[1736178339137,5.74126932,3695.4,3694.9,3.2078]
[1736178339337,2.53346932,3695.0,3694.7,40.8]
[1736178339635,2.53346932,3695.0,3694.5,3.2078]
[1736178339636,3.1079,3694.9,3694.5,3.2078]
[1736178339839,0.27064,3694.8,3694.5,3.47845]
[1736178340040,3.1079,3694.9,3694.5,3.2078]
[1736178340240,0.27064,3694.8,3694.6,0.27064]
[1736178340633,3.1079,3694.9,3694.8,0.27063]
[1736178340837,1.6026,3694.9,3694.8,0.27063]
[1736178341036,1.5758,3695.5,3694.5,3.2078]
[1736178341239,3.2078,3695.7,3694.9,3.2078]
[1736178341441,3.2078,3695.7,3695.6,0.27057]
[1736178342143,3.2078,3695.7,3695.6,41.07057]
[1736178342635,1.5794,3696.1,3695.6,41.07057]
[1736178342840,3.2078,3696.3,3696.1,0.27054]
[1736178343040,4.7701,3696.3,3696.2,0.27053]
[1736178343230,4.7701,3696.3,3695.6,40.8]
[1736178343437,0.27053,3696.2,3696.1,0.27054]
[1736178343631,2.53346932,3696.2,3695.6,40.8]
[1736178343830,2.80399932,3696.2,3696.0,0.27054]
[1736178344035,2.80399932,3696.2,3695.6,40.8]
[1736178344036,2.53346932,3696.2,3695.6,40.8]
[1736178344234,2.53346932,3696.2,3695.7,0.27056]
[1736178344235,0.27055,3695.9,3695.7,0.27056]
[1736178344432,0.27057,3695.7,3695.6,40.8]
[1736178344636,2.53346932,3695.8,3695.3,0.27059]
[1736178344838,3.2078,3695.5,3694.9,1.4935]
[1736178345034,4.09576932,3695.4,3694.3,4.747]
[1736178345439,0.27063,3694.9,3694.3,4.747]
[1736178345639,2.53346932,3695.0,3694.4,40.8]
[1736178346043,0.27062,3695.0,3694.4,40.8]
[1736178346441,2.80406932,3695.3,3695.2,0.2706]
[1736178346643,0.27061,3695.2,3695.0,0.27061]
[1736178346840,2.80406932,3695.3,3695.1,0.27061]
[1736178347041,2.80406932,3695.3,3694.6,0.67662]
[1736178347042,0.2706,3695.2,3694.6,0.67662]
[1736178347242,2.80406932,3695.3,3695.1,0.27061]
[1736178347440,2.53346932,3695.3,3695.1,0.27061]
[1736178347946,2.53346932,3695.3,3694.5,1.5737]
[1736178348147,1.5623,3695.4,3694.5,1.5737]
[1736178348450,1.5623,3695.4,3695.3,0.2706]
[1736178348743,3.2078,3695.5,3695.4,0.27059]
[1736178348937,1.77117,3695.6,3694.7,3.2078]
[1736178349136,1.5006,3695.6,3695.4,0.27058]
[1736178349343,1.5006,3695.6,3694.9,0.67657]
[1736178349644,1.5006,3695.6,3695.5,0.27058]
[1736178350147,3.2078,3696.3,3696.2,0.27053]
[1736178350344,0.27052,3696.4,3695.6,1.5176]
[1736178350345,1.5668,3696.4,3695.6,1.5176]
[1736178350648,0.27054,3696.0,3695.7,40.8]
[1736178350842,0.27054,3696.0,3695.9,0.27055]
[1736178351044,0.27055,3695.9,3695.8,0.27056]
[1736178351448,0.27056,3695.8,3695.7,41.07056]
[1736178351746,2.53346932,3696.1,3695.8,0.27055]
[1736178351951,2.53346932,3696.1,3695.7,41.07056]
[1736178352141,2.53346932,3696.1,3695.0,5.44034]
[1736178352342,0.27056,3695.8,3695.7,0.27057]
[1736178352537,2.53346932,3696.1,3695.8,0.27055]
[1736178352742,3.2078,3695.9,3695.7,0.27056]
[1736178352941,2.53346932,3696.1,3695.4,40.8]
[1736178353142,3.2078,3695.9,3695.4,40.8]
[1736178353349,0.27058,3695.6,3695.5,0.27058]
[1736178353651,4.8194,3695.8,3695.4,40.8]
[1736178353850,5.08996,3695.8,3695.6,0.27057]
[1736178354246,5.08996,3695.8,3695.4,40.8]
[1736178354247,4.8194,3695.8,3695.7,0.27057]
[1736178354549,4.64128295,3696.1,3696.0,0.27054]
[1736178354746,2.10781363,3696.1,3696.0,0.27054]
[1736178355552,1.83833,3696.2,3696.1,0.27054]
[1736178355854,1.83833,3696.2,3695.7,1.6222]
[1736178355855,5.55673363,3696.4,3696.3,0.27052]
[1736178356545,0.27053,3696.2,3696.1,0.27053]
[1736178357050,3.47833,3696.3,3696.1,0.27053]
[1736178357442,3.47833,3696.3,3695.5,0.67645]
[1736178357443,0.27053,3696.2,3695.5,0.67645]
[1736178357753,0.27053,3696.2,3696.0,0.27054]
[1736178358051,0.27053,3696.2,3696.1,40.8]
[1736178359260,0.27053,3696.2,3696.1,0.27054]
[1736178359449,0.27053,3696.2,3696.1,0.27053]
[1736178359658,3.2078,3696.3,3695.6,40.8]
[1736178359851,0.27054,3696.1,3695.6,40.8]
[1736178360046,0.27054,3696.1,3696.0,0.27054]
[1736178360357,6.32937962,3696.4,3695.8,3.2078]
[1736178360653,3.15097962,3696.4,3696.3,0.27052]
[1736178360848,3.15097962,3696.4,3696.3,41.07052]
[1736178361450,3.15097962,3696.4,3695.8,3.2078]
[1736178361658,2.14156053,3696.0,3695.4,7.40034218]
[1736178361852,0.27056,3695.8,3695.7,0.27056]
[1736178362055,0.27056,3695.8,3695.7,41.07056]
[1736178362357,0.27056,3695.8,3695.7,40.8]
[1736178362962,0.27056,3695.8,3695.7,41.07057]
[1736178363455,0.27056,3695.8,3695.7,40.8]
[1736178363658,3.24735,3695.9,3695.8,0.27056]
[1736178363850,2.9768,3695.9,3695.8,0.27056]
[1736178364055,0.27056,3695.8,3695.7,40.8]
[1736178364458,1.77066,3695.9,3695.8,0.27056]
[1736178364663,1.5001,3695.9,3695.8,0.27056]
[1736178365851,1.77066,3695.9,3695.7,41.07056]
[1736178366057,1.77066,3695.9,3695.8,0.27056]
[1736178366257,1.5001,3695.9,3695.8,0.27056]
[1736178367156,3.47834,3696.1,3696.0,0.27054]
[1736178367354,3.47834,3696.1,3695.9,0.27055]
[1736178367355,0.27055,3696.0,3695.9,0.27055]
[1736178367556,3.2078,3696.1,3696.0,0.27054]
[1736178367759,3.47834,3696.1,3696.0,0.27054]
[1736178367955,3.47834,3696.1,3695.7,40.8]
[1736178367956,0.27055,3696.0,3695.9,0.27055]
[1736178368656,6.80684015,3696.3,3695.7,44.0078]
[1736178368858,0.27053,3696.2,3696.1,0.27053]
[1736178369155,1.5143,3696.3,3696.2,0.27053]
[1736178369364,3.37972,3696.4,3696.3,0.27052]
[1736178369558,3.1092,3696.4,3696.3,0.27052]
[1736178369756,0.27054,3696.2,3696.1,0.27053]
[1736178370057,0.27054,3696.1,3696.0,0.27054]
[1736178370559,0.27053,3696.2,3696.1,0.27053]
[1736178370962,6.317,3696.4,3695.8,3.0755]
[1736178371161,0.27056,3695.8,3695.7,47.35937328]
[1736178371357,0.27056,3695.8,3695.7,6.55937328]
[1736178371562,0.67631,3696.3,3695.8,0.27055]
[1736178371563,0.27056,3695.9,3695.8,0.27055]
[1736178372174,0.27056,3695.9,3695.7,6.28881328]
[1736178372175,0.27055,3696.1,3696.0,0.27054]
[1736178372560,0.27055,3696.0,3695.9,0.27055]
[1736178373166,0.27054,3696.1,3696.0,0.27054]
[1736178373565,3.15097962,3696.2,3695.8,4.20596162]
[1736178373860,3.15097962,3696.2,3696.1,0.27054]
[1736178374257,3.15097962,3696.2,3696.1,41.07054]
[1736178374459,3.42150962,3696.2,3696.1,0.27054]
[1736178374870,0.27055,3696.0,3695.9,0.27055]
[1736178375066,0.27053,3696.2,3696.1,4.20596162]
[1736178375477,0.27053,3696.2,3696.1,4.47650162]
[1736178375766,0.27053,3696.2,3696.1,4.20596162]
[1736178376469,0.27053,3696.2,3696.1,4.47650162]
[1736178376668,0.27053,3696.2,3696.1,0.27054]
[1736178376968,0.27053,3696.3,3696.2,0.27053]
[1736178377558,0.27053,3696.2,3695.9,45.00596162]
[1736178377776,0.27053,3696.2,3696.1,0.27054]
[1736178378870,0.27054,3696.0,3695.9,40.8]
[1736178379059,3.2078,3696.0,3695.7,4.20596162]
[1736178379269,3.2078,3696.0,3695.9,0.27055]
[1736178379463,3.2078,3696.0,3695.9,41.07055]
[1736178379967,3.15097962,3696.3,3696.2,0.27053]
[1736178380769,9.46797962,3696.4,3696.0,1.5291]
[1736178380973,9.46797962,3696.4,3696.3,0.27052]
[1736178381372,3.15097962,3696.4,3696.3,0.27052]
[1736178381673,3.15097962,3696.4,3696.3,0.26641837]
[1736178382375,3.15097962,3696.5,3696.4,0.27051]
[1736178383376,3.15097962,3696.5,3696.0,1.5291]